Cogmind - Beta 15 @@@ ROGUE MODE // 2025.08.10 @ 18:54:29 Player: kim.jet.wav Result: Destroyed by Y-45 Defender with Beam Rifle Performance ------------- Evolutions (2) 1000 Regions Visited (4) 800 Robots Destroyed (40) 200 Value Destroyed (924) 924 Prototype IDs (1) 20 Alien Tech Used (0) 0 Bonus (0) 0 TOTAL SCORE: 2944 Bonus ------- None Cogmind --------- Core Integrity 0/550 Matter 60/300 Energy 100/100 System Corruption 0% Temperature Cool (27) Movement Core (50) Location -8/Materials Parts ------- > --- POWER (1) -------- (None) > --- PROPULSION (3) --- (None) > --- UTILITY (4) ------ (None) > --- WEAPON (3) ------- (None) > --- INVENTORY (5) ---- Reaction Control System Datajack Plasma Cutter Peak State ------------ > --- POWER ------------ Deuterium Engine > --- PROPULSION ------- Flight Unit Flight Unit VTOL Module > --- UTILITY ---------- Small Storage Unit Structural Scanner Signal Interpreter > --- WEAPON ----------- Heavy Particle Cannon Rocket Launcher > --- INVENTORY -------- Light Ion Engine Aluminum Leg Beam Cannon Advanced Beam Cannon Datajack Plasma Cutter [Rating: 15] Favorites ----------- Power Light Nuclear Core Engine Ion Engine Power Core Light Nuclear Core Propulsion Aluminum Leg Leg Aluminum Leg Hover Unit Improved Hover Unit Flight Unit Flight Unit Utility Seismic Detector Device Seismic Detector Storage Medium Storage Unit Processor Signal Interpreter Protection Light Armor Plating Weapon EM Pulse Gun Energy Gun EM Pulse Gun Energy Cannon Advanced Beam Cannon Launcher EMP Blaster Special Weapon Plasma Cutter Special Melee Weapon Datajack Build | -11 -10 -9 -9 -8 ------- Run | Yrd Mat Mat Min Mat Slots Evolved 4 | . . 2 . 2 Power . | . . . . . Propulsion 1 | . . . . 1 Utility 2 | . . 1 . 1 Weapon 1 | . . 1 . . Parts Attached 33 | 8 4 7 7 7 Power 5 | 1 1 . 2 1 Engine 4 | 1 . . 2 1 Core 1 | . 1 . . . Reactor . | . . . . . Propulsion 9 | 2 2 1 2 2 Treads . | . . . . . Leg 5 | 2 2 1 . . Wheel . | . . . . . Hover 1 | . . . . 1 Flight 3 | . . . 2 1 Utility 9 | 3 1 1 2 2 Device 3 | 2 . . 1 . Storage 4 | 1 1 . . 2 Processor 1 | . . . 1 . Hackware . | . . . . . Protection 1 | . . 1 . . Artifact . | . . . . . Weapon 10 | 2 . 5 1 2 Energy Gun 3 | 2 . 1 . . Energy Cannon 3 | . . 2 . 1 Ballistic Gun . | . . . . . Ballistic Cannon . | . . . . . Launcher 2 | . . 1 . 1 Special Weapon 1 | . . 1 . . Impact Weapon . | . . . . . Slashing Weapon . | . . . . . Piercing Weapon . | . . . . . Special Melee Weapon 1 | . . . 1 . Unidentified Prototypes 1 | . . 1 . . Corrupted Parts 3 | . . . 3 . System Corruption 10 | . . . 10 . Parts Lost 6 | . . . 1 5 Power 1 | . . . 1 . Propulsion 3 | . . . . 3 Utility . | . . . . . Weapon 2 | . . . . 2 Highest Loss Streak 3 | . . . 1 3 To Critical Strikes . | . . . . . Average Backups 6 | . 5 8 7 5 Power 1 | . 1 2 1 . Propulsion 1 | . 1 1 1 . Utility . | . 1 1 . . Weapon 1 | . . 3 2 2 Tool/Special . | . . . . . Unused Backups 6 | . 1 1 2 2 Power 1 | . . . 1 . Propulsion 1 | . . . . 1 Utility 2 | . 1 . . 1 Weapon 2 | . . 1 1 . Tool/Special . | . . . . . Average Slot Usage (%) 88 | . 98 94 82 48 Engine 2 | . 4 . 3 6 Core 8 | . 8 11 7 . Leg 20 | . 28 22 15 . Flight 2 | . . . 4 14 Device 11 | . 14 11 8 6 Storage 11 | . 14 11 7 5 Processor 1 | . . . 1 6 Protection 4 | . . 7 7 . Energy Gun 20 | . 27 22 15 . Energy Cannon 3 | . . 6 . 2 Launcher 1 | . . 1 7 2 Peak Build Rating 15 | 9 9 14 13 15 Average Rating 9 | 6 8 12 10 8 On Entrance 6 | . 7 9 13 5 Naked Turns 34 | . . . 1 33 Heaviest Build 27 | 15 20 27 27 15 Greatest Support 20 | 20 20 20 20 12 Greatest Overweight (x) 3 | . . 1 1 3 Average Overweight (x) . | . . . . . Largest Inventory Capacity 10 | 8 10 10 10 10 Average Capacity 8 | 7 8 10 8 7 Most Carried 10 | 2 9 10 9 8 Average Carried 6 | . 5 8 7 5 Final Capacity 10 | 8 10 10 5 5 Final Carried 9 | 1 7 9 5 3 Class Distribution -------------------- 55% | Mutant 24% | Tank 8% | Gunner 6% | Scavenger-Tank 4% | Sprinter Dominant Class ---------------- Mutant | -10/Materials Tank | -9/Materials Tank | -9/Mines Mutant | -8/Materials Resources | -11 -10 -9 -9 -8 ----------- Run | Yrd Mat Mat Min Mat Matter Collected 530 | 280 90 98 62 . Remotely . | . . . . . Salvage Created 1101 | 270 241 426 49 115 Parts 55 | 20 9 17 5 4 Haulers Intercepted . | . . . . . Recyclers Shooed 2 | 1 . 1 . . Parts Field Recycled . | . . . . . Retrieved Matter . | . . . . . Parts Self-Destructed . | . . . . . Prevented . | . . . . . Kills | -11 -10 -9 -9 -8 ------- Run | Yrd Mat Mat Min Mat Combat Hostiles Destroyed 24 | . 4 9 3 8 Guns 11 | . 4 7 . . AOE 13 | . . 2 3 8 Classes Destroyed 9 | 3 3 3 . . Worker 4 | 2 1 1 . . Tunneler 7 | 7 . . . . Recycler 1 | 1 . . . . Operator 2 | . 1 1 . . Watcher 2 | . 1 1 . . Swarmer 9 | . . 3 3 3 Grunt 12 | . 4 3 . 5 Brawler 1 | . . 1 . . Sentry 2 | . . 2 . . Best Kill Streak 6 | 6 3 5 3 5 Combat Bots Only 5 | . 2 5 3 5 Max Kills in Single Turn 3 | 2 2 2 2 3 Gunslinging 1 | . . 1 . . Exploded 3 | . . 2 2 3 Melee . | . . . . . Uniques/NPCs Destroyed . | . . . . . Combat | -11 -10 -9 -9 -8 -------- Run | Yrd Mat Mat Min Mat Hostile Shots Fired 135 | . 19 32 13 71 Missed 47 | . 4 9 3 31 Hits 88 | . 15 23 10 40 Projectile 88 | . 15 23 10 40 Critical Strikes 4 | . 1 . . 3 Damage Taken 1477 | . 185 242 129 921 Core 624 | . 11 29 34 550 Absorbed by Shields . | . . . . . Regen/Repaired (Parts) 45 | . 22 23 . . Core Remaining (%) 93 | 100 95 . 84 . Volleys Fired 80 | 27 14 25 5 9 Largest 3 | 2 2 3 3 2 Hottest 158 | 90 90 158 123 108 Shots Fired 167 | 54 28 63 11 11 Gun 140 | 54 28 50 8 . Cannon 9 | . . 7 . 2 Launcher 14 | . . 2 3 9 Special 4 | . . 4 . . Kinetic . | . . . . . Thermal 77 | 27 14 31 3 2 Explosive 9 | . . . . 9 Electromagnetic 81 | 27 14 32 8 . Robot Hit Streak 12 | 4 6 12 . 3 Robot Miss Streak 5 | 4 2 5 . 2 Penetration Max . | . . . . . Secondary Targets 2 | . 1 1 . . Max Gunslinging Chain 1 | . 1 1 . . Shots Hit Robots 87 | 28 20 32 2 5 Core Hits 62 | 11 13 18 5 15 Critical Kills . | . . . . . Critical Parts Destroyed . | . . . . . Critical Strikes 3 | 1 1 1 . . Burn 3 | 1 1 1 . . Melee Attacks 2 | . . . 2 . Impact . | . . . . . Slashing . | . . . . . Piercing . | . . . . . Sneak Attacks 2 | . . . 2 . Combat Hostiles . | . . . . . Follow-up Attacks . | . . . . . Damage Inflicted 2315 | 377 294 509 87 1048 Guns 1010 | 377 294 339 . . Cannons 100 | . . 75 . 25 Explosions 1193 | . . 83 87 1023 Melee . | . . . . . Ramming . | . . . . . Kinetic . | . . . . . Thermal 533 | 166 114 202 26 25 Explosive 1023 | . . . . 1023 Electromagnetic 759 | 211 180 307 61 . Impact . | . . . . . Slashing . | . . . . . Piercing . | . . . . . Highest Corruption 10 | . . . 10 . Average Corruption 9 | . . . 9 . Corruption Purged . | . . . . . Corruption Blocked . | . . . . . Effects 1 | . . . 1 . Matter Fused 1 | . . . 1 . Overload Shots . | . . . . . Overflow Damage 157 | . . . . 157 Projectiles . | . . . . . Explosions 157 | . . . . 157 Melee . | . . . . . Knockbacks . | . . . . . Impact . | . . . . . Kinetic . | . . . . . Secondary . | . . . . . Self-Inflicted Damage 407 | . . . 49 358 Shots 6 | . . . 2 4 Rammed . | . . . . . Targets Rammed . | . . . . . Kicked . | . . . . . Crushed . | . . . . . Highest Temperature 358 | 238 351 358 168 73 Average Temperature 109 | 87 133 132 72 44 Received Heat Transfer 489 | . 117 48 . 324 Effects 4 | . 1 3 . . Interference 4 | . 1 3 . . Siege Activations . | . . . . . Martial Activations . | . . . . . Shielding Activations . | . . . . . Robots Disrupted . | . . . . . Combat Hostiles . | . . . . . Robots Corrupted . | . . . . . Combat Hostiles . | . . . . . Parts Fried 2 | 1 . 1 . . Impact Corruptions . | . . . . . Robots Melted . | . . . . . Combat Hostiles . | . . . . . Parts Melted 1 | . . 1 . . Heat Transferred 1641 | 555 407 592 50 37 Parts Sabotaged . | . . . . . Parts Stolen . | . . . . . Parts Stripped . | . . . . . Power Chain Reactions 2 | . . . 2 . Alert | -11 -10 -9 -9 -8 ------- Run | Yrd Mat Mat Min Mat Maximum Alert Level 1 | . . . . 1 Low Security (%) 99 | 100 100 100 100 95 Level 1 . | . . . . 4 Level 2 . | . . . . . Level 3 . | . . . . . Level 4 . | . . . . . Level 5 . | . . . . . High Security . | . . . . . Max Security . | . . . . . Peak Influence 309 | 10 50 137 73 309 Initial 16 | . . . 5 16 Average 31 | 1 8 42 28 83 Influence Increases 1031 | 50 117 318 83 463 Destroy 0b10 Robot/C 480 | . 80 180 60 160 Destroy 0b10 Robot/NC 80 | 50 15 15 . . Destroy Leader 104 | . 22 52 10 20 Successful Hack 27 | . . 11 . 16 Disable Machine 105 | . . 45 . 60 Destroy Structure 85 | . . . 13 72 Partial Spotted 30 | . . 15 . 15 Lose Combat Pursuer 120 | . . . . 120 Influence Decreases 722 | 50 117 303 55 197 Entered New Map 37 | . . . 10 27 Time Decay 625 | 50 117 303 35 120 Lost Part 60 | . . . 10 50 Squads Dispatched 4 | . . 1 . 3 Investigation 2 | . . 1 . 1 Extermination . | . . . . . Reinforcement 2 | . . . . 2 Assault . | . . . . . Garrison . | . . . . . Intercept . | . . . . . Searches Triggered . | . . . . . Construction Impeded 1 | . . . . 1 Haulers Reinforced . | . . . . . Active Scanning Responses . | . . . . . Cargo Convoy Interrupts . | . . . . . Stealth | -11 -10 -9 -9 -8 --------- Run | Yrd Mat Mat Min Mat Distress Signals 4 | . . 2 . 2 Communications Jammed . | . . . . . Distress Signals . | . . . . . Times Spotted 56 | . 9 19 6 22 Peak Tracking Total 8 | . 2 4 3 8 Tactical Retreats 3 | . . . . 3 Traps | -11 -10 -9 -9 -8 ------- Run | Yrd Mat Mat Min Mat Traps Triggered 2 | . 2 . . . Indirectly . | . . . . . Trap Hack Attempts . | . . . . . Triggered . | . . . . . Disarmed . | . . . . . Reprogrammed . | . . . . . Reused . | . . . . . Traps Extracted . | . . . . . Installed . | . . . . . Triggered . | . . . . . Machines | -11 -10 -9 -9 -8 ---------- Run | Yrd Mat Mat Min Mat Machines Disabled 7 | . . 3 . 4 Max in Single Turn 2 | . . 1 . 2 Machines Repaired . | . . . . . Machines Dismantled . | . . . . . Machines Sabotaged . | . . . . . Overloaded Fab Kills . | . . . . . Hacking | -11 -10 -9 -9 -8 --------- Run | Yrd Mat Mat Min Mat Machines Accessed 9 | . 4 4 . 1 Terminals 6 | . 2 3 . 1 Fabricators . | . . . . . Repair Stations 2 | . 1 1 . . Recycling Units 1 | . 1 . . . Scanalyzers . | . . . . . Garrison Access . | . . . . . Total Hacks 24 | . 7 13 . 4 Successful 13 | . 5 7 . 1 Failed 11 | . 2 6 . 3 Catastrophic 1 | . 1 . . . Database Lockouts . | . . . . . Manual 6 | . 2 4 . . Terminals 14 | . 2 8 . 4 Fabricators . | . . . . . Repair Stations 8 | . 3 5 . . Recycling Units 2 | . 2 . . . Scanalyzers . | . . . . . Garrison Access . | . . . . . Terminal Hacks 4 | . . 3 . 1 Robot Analysis 1 | . . . . 1 Terminal Index 1 | . . 1 . . Investigation Status 1 | . . 1 . . Zone Layout 1 | . . 1 . . Fabricator Hacks . | . . . . . Repair Station Hacks 4 | . 2 2 . . Scan Component 2 | . 1 1 . . Repair 2 | . 1 1 . . Recycling Unit Hacks 2 | . 2 . . . Recycle Component 1 | . 1 . . . Process 1 | . 1 . . . Scanalyzer . | . . . . . Garrison Access Hacks . | . . . . . Unauthorized Hacks 3 | . 1 2 . . Terminals 3 | . 1 2 . . Assimilate 3 | . 1 2 . . Fabricators . | . . . . . Repair Stations . | . . . . . Recycling Units . | . . . . . Scanalyzers . | . . . . . Garrison Access . | . . . . . Data Cores Recovered 2 | . 1 1 . . Used 1 | . . 1 . . Hacking Detections 7 | . 3 3 . 1 Full Trace Events 2 | . . 1 . 1 Feedback Events . | . . . . . Feedback Blocked . | . . . . . Robot Schematics Acquired . | . . . . . Robots Built . | . . . . . Authchips . | . . . . . Time . | . . . . . Total Robot Build Rating . | . . . . . Part Schematics Acquired . | . . . . . Parts Built . | . . . . . Authchips . | . . . . . Time . | . . . . . Total Part Build Rating . | . . . . . Parts Repaired 2 | . 1 1 . . Time 64 | . 38 26 . . Parts Recycled 1 | . 1 . . . Recycled Matter 38 | . 38 . . . Retrieved Matter . | . . . . . Retrieved Components . | . . . . . Parts Scanalyzed . | . . . . . Part Schematics Acquired . | . . . . . Parts Damaged . | . . . . . Bothacking | -11 -10 -9 -9 -8 ------------ Run | Yrd Mat Mat Min Mat Used RIF Installer . | . . . . . Robots Hacked 1 | . . . 1 . Non-combat 1 | . . . 1 . Combat . | . . . . . Robot Hacks Applied 1 | . . . 1 . parse_system 1 | . . . 1 . Relay Couplers Released . | . . . . . Fabnet Peak Effective % . | . . . . . Robots Rewired . | . . . . . Allies Hacked . | . . . . . Hacks Repelled . | . . . . . Allies | -11 -10 -9 -9 -8 -------- Run | Yrd Mat Mat Min Mat Total Allies . | . . . . . Largest Group . | . . . . . Highest-Rated Group . | . . . . . Highest-Rated Ally . | . . . . . Total Orders . | . . . . . Ally Attacks . | . . . . . Total Damage . | . . . . . Kills . | . . . . . Allies Corrupted . | . . . . . Allies Melted . | . . . . . Intel | -11 -10 -9 -9 -8 ------- Run | Yrd Mat Mat Min Mat Active Infowar (turns) 1888 | 48 664 925 99 152 Terrain 39 | 39 . . . . Structural 162 | . . . 10 152 Seismic 1687 | 9 664 925 89 . Robot Analysis Total 1 | . . . . 1 Derelict Logs Recovered . | . . . . . Drone Launches . | . . . . . Drone Recoveries . | . . . . . Exploration | -11 -10 -9 -9 -8 ------------- Run | Yrd Mat Mat Min Mat Turns Passed 2199 | 228 664 925 129 253 Spaces Moved 1284 | 107 435 384 91 267 Core 64 | 8 . . 5 51 Treads . | . . . . . Legs 956 | 99 435 384 38 . Wheels . | . . . . . Hover 45 | . . . . 45 Flight 219 | . . . 48 171 Fastest Speed 32 | 50 120 120 40 32 Average Speed 122 | 114 120 174 104 62 Slowest Speed 280 | 120 120 190 190 280 Overloaded Moves . | . . . . . Propulsion Burnouts . | . . . . . Robots Hopped 1 | . . . 1 . Potential Cave-ins . | . . . . . Cave-ins Triggered . | . . . . . Exploration Rate (%) 27 | 4 65 28 15 24 Regions Visited 4 Branch Regions 1 Pre-discovered Areas . | . . . . . Known Exits Taken 1 | . . . 1 . Unknown Exits Taken 3 | 1 1 1 . . Scrap Searched 1 | . . . 1 . Spaces Dug . | . . . . . Terrain Destroyed 107 | . . . 13 94 Melee . | . . . . . Projectile . | . . . . . AOE 107 | . . . 13 94 Terrain Rammed . | . . . . . Walls Destroyed . | . . . . . Machines Disabled . | . . . . . Actions | -11 -10 -9 -9 -8 --------- Run | Yrd Mat Mat Min Mat Total 1735 | 154 546 585 110 340 Wait 291 | 10 77 160 5 39 Move 1278 | 106 434 383 88 267 Hop 1 | . . . 1 . Pick Up 19 | 2 8 5 1 3 Fast Attach 23 | 7 5 3 4 4 Attach 9 | . . . 3 6 Detach 6 | . . . 1 5 Swap 15 | 1 4 6 . 4 Drop 10 | 1 4 3 . 2 Fire 80 | 27 14 25 5 9 Melee 2 | . . . 2 . Ram . | . . . . . Kick . | . . . . . Crush . | . . . . . Escape Stasis . | . . . . . Rewire . | . . . . . Trap . | . . . . . Miscellaneous 1 | . . . . 1 Route ------- -11/Scrapyard -10/Materials -9/Materials -9/Mines -8/Materials History --------- Turn | Location | Event 2 | -11/Scrapyard | Discovered new exit (range 16) 229 | -11/Scrapyard | Entered Materials 317 | -10/Materials | Build established: Mutant 619 | -10/Materials | Discovered new exit (range 5) 794 | -10/Materials | Repaired Lgt. Nuclear Core 893 | -10/Materials | Entered another Materials area 893 | -9/Materials | Evolved 2 slots: Utility x1, Weapon x1 1350 | -9/Materials | Repaired EM Pulse Gun 1656 | -9/Materials | Build established: Tank 1723 | -9/Materials | Discovered new exit (range 14) 1818 | -9/Materials | Entered Mines 1907 | -9/Mines | Released all parts (9) 1913 | -9/Mines | System corruption reached 10% 1943 | -9/Mines | Discovered new exit (range 11) 1946 | -9/Mines | Identified exit to Materials 1947 | -9/Mines | Entered Materials 1947 | -8/Materials | Evolved 2 slots: Propulsion x1, Utility x1 2134 | -8/Materials | Released all parts (5) 2191 | -8/Materials | Core integrity fell below 50% 2200 | -8/Materials | Core integrity fell below 20% 2200 | -8/Materials | Destroyed by Y-45 Defender with Beam Rifle Last Messages --------------- 02154_ ALERT: Suspicious intruders detected, dispatching Cutter reinforcements to area. 02157_ Acquired Imp. Hover Unit. 02181_ Critical hit (Burn: +37). 02187_ S-10 Pest destroyed. 02190_ Nuclear Reactor explodes. 02190_ G-47 Trooper destroyed. 02190_ Rocket Launcher destroyed. 02190_ Destroyed Rocket Launcher. 02190_ Adv. Beam Cannon destroyed. 02190_ Destroyed Adv. Beam Cannon. 02190_ Imp. Hover Unit destroyed. 02190_ Destroyed Imp. Hover Unit. 02190_ Nuclear Reactor explodes. 02190_ G-47 Trooper destroyed. 02190_ Destroyed Lgt. Ion Engine. 02190_ S-10 Pest destroyed. 02198_ Critical hit (Burn: +37). 02199_ Nuclear Reactor explodes. 02200_ Critical hit (Burn: +37). Map ----- +----------------------------------------------------+ | | | | | | | | | | | | | | | | | | | ????????????????#????????????? | | ???????????????? ????????????? | | ???????????????? ?????/??????? | | ???????????????? """ ??????? | | ???????????????? """ ???????? | | ???????????????? """ ????????? | | ???????????????? """?????????? | | ########???????? ??????????? | | # #######?##/######?????? | | # """ # #?# ??????? | | # "R # ### #?????????? | | # """ + #?????????? | | # # ### #?????????? | | # # Y ### #?????????? | | ## #?????????? | | % #?????????? | | @ #?????????? | | #?????????? | | s #?????????? | | # r #?????????? | | #?????????? | | % #?????????? | | gg # ##????????? | | ##### """ """l #????????? | | ????# """ """g# #????????? | | ????# """ """ + T +????????? | | ????# # #????????? | | ????# # #????????? | | ????# ## ##????????? | | ????# ## #?????????? | | #########+###### #?????????? | | # # #????# #?????????? | | # # #????# #?????????? | | # # #????# #?????????? | | # # ###### ##### ????? | | # # ???? | | # + ???? | | # # ???? | | # ### ########### ?????? | | # #?# #????????????????? | | # #?# #????????????????? | +----------------------------------------------------+ Best States ------------- Heat Dissipation 31 Energy Generation 14 Energy Capacity 275 Matter Stores 300 Matter Capacity 300 Sight Range 16 Terrain Scan Range 16 Terrain Scan Density 10 Armor Coverage 150 Evasion (%) 63 Item Schematics ----------------- None Robot Schematics ------------------ None Fabricated ------------ Nothing Repaired ---------- Lgt. Nuclear Core | 56% | -10/Materials EM Pulse Gun | 48% | -9/Materials Alien Tech Used ----------------- None Achievements -------------- None Challenges ------------ None Game ------ Seed BattleDrainedTriangulator Manual? 0 Play Time 00:41:34 Cumulative 40.1 hours Start 2025.08.10 @ 17:22:04 End 2025.08.10 @ 18:54:29 Sessions 1 Manual Loads 0 Difficulty Rogue Special Mode None Game No. 201 Rogue 201 Adventurer 0 Explorer 0 Win Type - Total 0 Types 0/0/0/0/0/0/0/0/0/0 Lore% 14 Gallery% 18 Achievement% 18 Wizard Run 0 Options --------- Layout 0 ASCII 1 Keyboard 1 Movement Numpad Keybinds 1 Fullscreen 1 Font 18/X11 Map View 76x50 Zoom Use 0% Tactical HUD 1 Map Filters NONE Filters NONE Steam 1 RUN: e5f61732-54b1-4f44-8191-fb86c52a5697